bitfinex-derivatives/quotes_BTCF0:USTF0_20250411
["timestamp","ask_amount","ask_price","bid_price","bid_amount"]
[1744343284520,0.1239094,80759.0,80755.0,0.00049532]
[1744343284717,0.1687094,80759.0,80755.0,0.00049532]
[1744343284922,0.2549494,80759.0,80755.0,0.00049532]
[1744343285421,0.2970494,80759.0,80755.0,0.00049532]
[1744343289817,0.2970494,80759.0,80756.0,0.0418]
[1744343292927,0.2549494,80759.0,80756.0,0.0418]
[1744343293227,0.0619525,80762.0,80756.0,0.0418]
[1744343293419,0.0619503,80765.0,80764.0,0.1239017]
[1744343293619,0.1858524,80765.0,80764.0,0.1239017]
[1744343294326,0.1858524,80765.0,80764.0,0.1678017]
[1744343295816,0.1238979,80767.0,80766.0,0.1858442]
[1744343296022,0.1238979,80767.0,80766.0,0.1489486]
[1744343297023,0.1238979,80767.0,80766.0,0.087]
[1744343297724,0.061953,80762.0,80750.0,0.0620848]
[1744343297929,0.061953,80762.0,80760.0,0.0885]
[1744343297930,0.1858594,80761.0,80760.0,0.0885]
[1744343298125,0.2276594,80761.0,80760.0,0.0885]
[1744343298924,0.2276594,80761.0,80760.0,0.2124078]
[1744343299326,0.2276594,80761.0,80760.0,0.0885]
[1744343300133,0.2692594,80761.0,80760.0,0.0885]
[1744343300923,0.1239094,80759.0,80758.0,0.3608]
[1744343307134,0.0834,80761.0,80756.0,0.0415]
[1744343307432,0.123914,80756.0,80755.0,0.00049532]
[1744343307633,0.210114,80756.0,80755.0,0.00049532]
[1744343308434,0.296414,80756.0,80755.0,0.00049532]
[1744343312431,0.296414,80756.0,80750.0,0.0001238]
[1744343312432,0.1239216,80751.0,80750.0,0.0001238]
[1744343312635,0.4847216,80751.0,80750.0,0.0001238]
[1744343313139,0.2101216,80751.0,80750.0,0.0001238]
[1744343314928,0.0862,80751.0,80750.0,0.124047]
[1744343315535,0.2101216,80751.0,80750.0,0.124047]
[1744343316036,0.2101216,80751.0,80750.0,0.212947]
[1744343316829,0.0862,80751.0,80750.0,0.212947]
[1744343317041,0.1858694,80758.0,80757.0,0.1239109]
[1744343317332,0.0619536,80761.0,80758.0,0.1239109]
[1744343317729,0.12409504,80759.0,80758.0,0.2126109]
[1744343320536,0.12409504,80759.0,80758.0,0.0887]
[1744343321941,0.12409504,80759.0,80758.0,0.2126109]
[1744343324430,0.12409504,80759.0,80758.0,0.0887]
[1744343325944,0.12409504,80759.0,80758.0,0.2126109]
[1744343326443,0.21021504,80759.0,80758.0,0.2126109]
[1744343326837,0.12409504,80759.0,80758.0,0.2126109]
[1744343327040,0.21021504,80759.0,80758.0,0.2126109]
[1744343335145,0.12409504,80759.0,80758.0,0.2126109]
[1744343335347,0.21021504,80759.0,80758.0,0.2126109]
[1744343350564,0.123917,80754.0,80753.0,0.3608]
[1744343350762,0.123917,80754.0,80753.0,0.4847186]
[1744343351261,0.1239116,80758.0,80757.0,0.1239109]
[1744343351462,0.08630564,80759.0,80756.0,0.0619563]
[1744343351672,0.00018564,80759.0,80758.0,0.1239109]
[1744343352169,0.00018564,80759.0,80758.0,0.2097109]
[1744343352561,0.12409504,80759.0,80758.0,0.2097109]
[1744343357480,0.12409504,80759.0,80758.0,0.0858]
[1744343357777,0.123914,80756.0,80755.0,0.22102244]
[1744343359176,0.123914,80756.0,80755.0,0.34493794]
[1744343359376,0.123914,80756.0,80755.0,0.22102244]
[1744343359977,0.123914,80756.0,80755.0,0.26342244]
[1744343360178,0.123914,80756.0,80755.0,0.22102244]
[1744343361883,0.373914,80756.0,80755.0,0.22102244]
[1744343362085,0.1239216,80751.0,80741.0,0.36795854]
[1744343363086,0.2132216,80751.0,80741.0,0.36795854]
[1744343363978,0.2132216,80751.0,80737.0,0.3608]
[1744343363979,0.2132216,80751.0,80739.0,0.29436683]
[1744343364879,0.1239385,80740.0,80739.0,0.29436683]
[1744343365079,0.2099785,80740.0,80739.0,0.29436683]
[1744343365892,0.2938785,80740.0,80739.0,0.29436683]
[1744343367590,0.1239508,80732.0,80731.0,0.00049547]
[1744343368293,0.4847508,80732.0,80731.0,0.00049547]
[1744343368584,0.1667508,80732.0,80731.0,0.00049547]
[1744343370090,0.2100508,80732.0,80731.0,0.00049547]
[1744343370292,0.22169151,80732.0,80731.0,0.00049547]
[1744343376495,0.1667508,80732.0,80731.0,0.00049547]
[1744343376796,0.1239508,80732.0,80731.0,0.12444777]
[1744343376992,0.2099908,80732.0,80731.0,0.12444777]
[1744343377586,0.1239508,80732.0,80731.0,0.12444777]
[1744343377787,0.2099908,80732.0,80731.0,0.12444777]
[1744343378891,0.2099908,80732.0,80731.0,0.00049547]
[1744343380100,0.1239508,80732.0,80731.0,0.21244777]
[1744343390503,0.1239508,80732.0,80731.0,0.08849547]
[1744343391004,0.1239508,80732.0,80731.0,0.21244777]
[1744343391396,0.1239508,80732.0,80731.0,0.08849547]
[1744343391601,0.1686508,80732.0,80731.0,0.08849547]
[1744343392191,0.1239508,80732.0,80731.0,0.08849547]
[1744343392604,0.2099108,80732.0,80731.0,0.08849547]
[1744343393705,0.2546108,80732.0,80731.0,0.00049547]
[1744343394098,0.3005108,80732.0,80731.0,0.00049547]
[1744343397603,0.2145508,80732.0,80731.0,0.00049547]
[1744343397803,0.3005108,80732.0,80731.0,0.00049547]
[1744343398009,0.1239616,80725.0,80724.0,0.0891]
[1744343398600,0.2099216,80725.0,80724.0,0.0891]
[1744343399109,0.2558216,80725.0,80724.0,0.0448]
[1744343399405,0.3012216,80725.0,80724.0,0.0448]
[1744343399800,0.6620216,80725.0,80724.0,0.0448]
[1744343400200,0.18475927,80736.0,80724.0,0.0448]
[1744343400405,0.30870397,80736.0,80735.0,0.3608]
[1744343401209,0.30870397,80736.0,80735.0,0.5759462]
[1744343402006,0.18475927,80736.0,80735.0,0.5759462]
[1744343403909,0.1239413,80739.0,80738.0,0.1239416]
[1744343404211,0.00018577,80740.0,80739.0,0.1239401]
[1744343404412,0.12412427,80740.0,80739.0,0.1239401]
[1744343405909,0.00018577,80740.0,80739.0,0.1239401]
[1744343406116,0.08596,80753.0,80747.0,0.1239278]
[1744343406312,0.1239207,80752.0,80747.0,0.4847278]
[1744343407007,0.1239207,80752.0,80747.0,0.5756278]
[1744343407405,0.08596,80753.0,80747.0,0.5756278]
[1744343408511,0.08596,80753.0,80752.0,0.1239201]
[1744343408911,0.0004,80754.0,80753.0,0.1239186]
[1744343416618,0.0619377,80782.0,80767.0,0.0619483]
[1744343416921,0.00909359,80791.0,80767.0,0.0619483]
[1744343416922,0.4846875,80774.0,80773.0,0.1238879]
[1744343417117,0.123894,80769.0,80768.0,0.2526945]
[1744343417316,0.123894,80769.0,80768.0,0.1238945]
[1744343421125,0.123894,80769.0,80768.0,0.13335223]
[1744343421326,0.123894,80769.0,80768.0,0.00945773]
[1744343421629,0.185847,80768.0,80767.0,0.1238959]
[1744343421819,0.229547,80768.0,80767.0,0.1238959]
[1744343424325,0.1056484,80768.0,80767.0,0.13314914]
[1744343429329,0.1238986,80766.0,80765.0,0.3608]
[1744343430422,0.1657986,80766.0,80765.0,0.3608]
[1744343430623,0.1239063,80761.0,80760.0,0.00018577]
[1744343431426,0.2111063,80761.0,80760.0,0.00018577]
[1744343432436,0.1239232,80750.0,80749.0,0.3608]
[1744343432633,0.1239232,80750.0,80749.0,0.4847247]
[1744343433531,0.2136232,80750.0,80749.0,0.4847247]
[1744343435434,0.2136232,80750.0,80749.0,0.3608]
[1744343435731,0.1239247,80749.0,80748.0,0.0428]
[1744343435934,0.1239247,80749.0,80748.0,0.086]
[1744343436135,0.2094247,80749.0,80748.0,0.086]
[1744343436724,0.2094247,80749.0,80748.0,0.2099262]
[1744343441740,0.2094247,80749.0,80748.0,0.0432]
[1744343442234,0.1239308,80745.0,80744.0,0.0453]
[1744343443033,0.2128308,80745.0,80744.0,0.0453]
[1744343443341,0.1239339,80743.0,80742.0,0.0426]
[1744343443538,0.1239355,80742.0,80741.0,0.00018577]
[1744343443737,0.1688355,80742.0,80741.0,0.00018577]
[1744343446739,0.1239355,80742.0,80741.0,0.00018577]
[1744343447143,0.1239355,80742.0,80741.0,0.12412277]
[1744343448039,0.1239355,80742.0,80741.0,0.00018577]
[1744343449137,0.1239355,80742.0,80741.0,0.13438577]
[1744343451637,0.1239355,80742.0,80741.0,0.25832277]
[1744343453146,0.0619661,80745.0,80742.0,0.061967]
[1744343453340,0.1858985,80745.0,80744.0,0.1239324]
[1744343453734,0.1858985,80745.0,80744.0,0.1978324]
[1744343457244,0.1858985,80745.0,80744.0,0.0739]
[1744343459956,0.1858985,80745.0,80744.0,0.1978324]
[1744343460543,0.1858985,80745.0,80744.0,0.0739]
[1744343461446,0.1858985,80745.0,80744.0,0.1978324]
[1744343464651,0.18475927,80756.0,80755.0,0.1239155]
[1744343464857,0.30867327,80756.0,80755.0,0.4847155]
[1744343465154,0.18475927,80756.0,80755.0,0.4847155]
[1744343465457,0.30867327,80756.0,80755.0,0.4847155]
[1744343467559,0.123914,80756.0,80755.0,0.4847155]
[1744343468457,0.06214157,80758.0,80757.0,0.1239124]
[1744343469556,0.06214157,80758.0,80757.0,0.2017124]
[1744343470956,0.00018577,80758.0,80757.0,0.2017124]
[1744343472759,0.03878577,80758.0,80757.0,0.2017124]
[1744343473158,0.14848845,80768.0,80767.0,0.1238971]
[1744343473358,0.14848845,80768.0,80767.0,0.4846971]
[1744343475565,0.00018577,80776.0,80767.0,0.4846971]
[1744343475566,0.14848845,80772.0,80771.0,0.123891]
[1744343475865,0.14848845,80772.0,80771.0,0.484691]
[1744343476261,0.14848845,80772.0,80771.0,0.562191]
[1744343478053,0.27237785,80772.0,80771.0,0.562191]
[1744343478459,0.27237785,80772.0,80771.0,0.484691]
[1744343480358,0.1238894,80772.0,80771.0,0.484691]
[1744343481064,0.0787,80775.0,80772.0,0.061944]
[1744343481259,0.00018577,80776.0,80773.0,0.1386433]
[1744343481566,0.00018577,80776.0,80775.0,0.1238848]
[1744343481871,0.00018577,80776.0,80773.0,0.1386433]
[1744343481872,0.4227265,80796.0,80795.0,0.1238542]
[1744343482460,0.4997265,80796.0,80795.0,0.1238542]
[1744343482661,0.51204824,80796.0,80795.0,0.1238542]
[1744343482961,0.63590554,80796.0,80795.0,0.1238542]
[1744343483157,0.27510554,80796.0,80795.0,0.1238542]
[1744343483358,0.0378,80796.0,80795.0,0.1238542]
[1744343483864,0.0004,80802.0,80797.0,0.1238511]
[1744343484058,0.0357,80801.0,80797.0,0.1238511]
[1744343484460,0.0004,80802.0,80801.0,0.123845]
[1744343485155,0.1242434,80802.0,80801.0,0.159345]
[1744343485362,0.1238496,80798.0,80797.0,0.00945871]
[1744343485559,0.1238511,80797.0,80793.0,0.4227285]
[1744343485767,0.1238542,80795.0,80794.0,0.1238546]
[1744343486166,0.0381,80796.0,80779.0,0.4227388]
[1744343486467,0.1238649,80788.0,80787.0,0.19541258]
[1744343486668,0.1238649,80788.0,80787.0,0.23151258]
[1744343486970,0.1238649,80788.0,80787.0,0.10765148]
[1744343487168,0.1238649,80788.0,80787.0,0.04571838]
[1744343487368,0.1238649,80788.0,80787.0,0.00961838]
[1744343487564,0.1238649,80788.0,80787.0,0.13348478]
[1744343487775,0.5588649,80788.0,80787.0,0.00018565]
[1744343487967,0.1980649,80788.0,80787.0,0.00018565]
[1744343488162,0.123891,80771.0,80770.0,0.1238918]
[1744343488966,0.0744,80772.0,80770.0,0.1238918]
[1744343488967,0.2477399,80787.0,80786.0,0.1238679]
[1744343489267,0.123869,80787.0,80786.0,0.1238679]
[1744343490474,0.1238679,80786.0,80785.0,0.0382]
[1744343490669,0.1238695,80785.0,80784.0,0.1238709]
[1744343490967,0.1238725,80784.0,80783.0,0.1238724]
[1744343491172,0.1606725,80784.0,80783.0,0.1238724]
[1744343492974,0.1606725,80784.0,80783.0,0.1620724]
[1744343493569,0.1963725,80784.0,80783.0,0.1620724]
[1744343494164,0.1606725,80784.0,80783.0,0.1620724]
[1744343497374,0.3608,80796.0,80783.0,0.0382]
[1744343497569,0.0619308,80791.0,80790.0,0.1857879]
[1744343497765,0.0619308,80791.0,80789.0,0.0357]
[1744343497972,0.1238725,80784.0,80783.0,0.061936]
[1744343498172,0.1238725,80784.0,80783.0,0.1858085]
[1744343498473,0.1625725,80784.0,80783.0,0.2215085]
[1744343499574,0.1238725,80784.0,80783.0,0.2215085]
[1744343499780,0.1238666,80787.0,80786.0,0.1857982]
[1744343499981,0.1238666,80787.0,80786.0,0.5852982]
[1744343501573,0.08556,80792.0,80786.0,0.5852982]
[1744343501574,0.08556,80792.0,80791.0,0.1238603]
[1744343502082,0.1238588,80792.0,80791.0,0.1238603]
[1744343502283,0.00018565,80795.0,80794.0,0.1238557]
[1744343502483,0.00018565,80795.0,80794.0,0.4846557]
[1744343503090,0.0004,80802.0,80800.0,0.1238465]
[1744343503383,0.0004,80802.0,80800.0,0.14036806]
[1744343504280,0.1242439,80802.0,80800.0,0.14036806]
[1744343504683,0.27233345,80801.0,80800.0,0.14036806]
[1744343504980,0.31103345,80801.0,80800.0,0.14036806]
[1744343505387,0.31103345,80801.0,80800.0,0.1238465]
[1744343505782,0.162545,80801.0,80800.0,0.1238465]
[1744343506080,0.162545,80801.0,80800.0,0.1625465]
[1744343508082,0.162545,80801.0,80800.0,0.0387]
[1744343508387,0.200045,80801.0,80800.0,0.1625465]
[1744343510484,0.162545,80801.0,80800.0,0.1625465]
[1744343511385,0.0387,80801.0,80800.0,0.1625465]
[1744343512386,0.0387,80801.0,80800.0,0.1789243]
[1744343512577,0.162545,80801.0,80800.0,0.1789243]
[1744343513286,0.162545,80801.0,80800.0,0.1625465]
[1744343516295,0.162545,80801.0,80800.0,0.5233465]
[1744343517993,0.123845,80801.0,80800.0,0.5233465]
[1744343518195,0.0004,80802.0,80801.0,0.123845]
[1744343518493,0.0004,80802.0,80801.0,0.195145]
[1744343518683,0.0004,80802.0,80801.0,0.229945]
[1744343519687,0.0004,80802.0,80801.0,0.2469016]
[1744343520397,0.0004,80802.0,80801.0,0.229945]
[1744343521596,0.0004,80802.0,80801.0,0.193445]
[1744343522193,0.0354,80802.0,80801.0,0.20981805]
[1744343522394,0.0354,80802.0,80801.0,0.193445]
[1744343522995,0.1592434,80802.0,80801.0,0.193445]
[1744343524298,0.1592434,80802.0,80801.0,0.20990972]
[1744343525302,0.1592434,80802.0,80801.0,0.193445]
[1744343526603,0.0004,80802.0,80801.0,0.193445]
[1744343527503,0.0004,80802.0,80801.0,0.20997863]
[1744343527901,0.0004,80802.0,80801.0,0.20998651]
[1744343528104,0.1242434,80802.0,80801.0,0.08614151]
[1744343528294,0.1242434,80802.0,80801.0,0.0696]
[1744343528889,0.1604434,80802.0,80801.0,0.193445]
[1744343529294,0.1604434,80802.0,80801.0,0.20993598]
[1744343530206,0.1604434,80802.0,80801.0,0.01649098]
[1744343531005,0.1604434,80802.0,80801.0,0.14033598]
[1744343531400,0.0366,80802.0,80801.0,0.14033598]
[1744343531603,0.1604434,80802.0,80801.0,0.14033598]
[1744343531805,0.0004,80802.0,80801.0,0.24773598]
[1744343532503,0.0004,80802.0,80801.0,0.231245]
[1744343532705,0.0004,80802.0,80801.0,0.24775193]
[1744343533105,0.0335,80802.0,80801.0,0.24775193]
[1744343534307,0.0335,80802.0,80801.0,0.231245]
[1744343534500,0.0004,80802.0,80801.0,0.231245]
[1744343535300,0.0004,80802.0,80801.0,0.24774353]
[1744343537212,0.1242434,80802.0,80801.0,0.24774353]
[1744343538404,0.0004,80802.0,80801.0,0.24774353]
[1744343539315,0.0004,80802.0,80801.0,0.2477264]
[1744343540013,0.00018565,80809.0,80808.0,0.1238342]
[1744343540219,0.00018565,80809.0,80808.0,0.5011156]
[1744343540918,0.00018565,80809.0,80808.0,0.5729156]
[1744343544117,0.12401835,80809.0,80808.0,0.5729156]
[1744343544514,0.12401835,80809.0,80808.0,0.5564342]
[1744343544921,0.00018565,80809.0,80808.0,0.5564342]
[1744343545720,0.03458565,80809.0,80808.0,0.5564342]
[1744343546223,0.15841835,80809.0,80808.0,0.5564342]
[1744343546924,0.15841835,80809.0,80808.0,0.1956342]
[1744343547122,0.15841835,80809.0,80808.0,0.5564342]
[1744343549315,0.15841835,80809.0,80808.0,0.57315902]
[1744343549712,0.15841835,80809.0,80808.0,0.57315709]
[1744343550326,0.15841835,80809.0,80808.0,0.5201342]
[1744343551022,0.15841835,80809.0,80808.0,0.3608]
[1744343551824,0.19361835,80809.0,80808.0,0.3608]
[1744343554224,0.19361835,80809.0,80808.0,0.1238342]
[1744343554926,0.1238358,80807.0,80806.0,0.1857543]
[1744343555933,0.1238388,80805.0,80804.0,0.0357]
[1744343556833,0.1238388,80805.0,80804.0,0.1595404]
[1744343557134,0.2296388,80805.0,80804.0,0.1956404]
[1744343559335,0.2296388,80805.0,80804.0,0.1599404]
[1744343559532,0.2296388,80805.0,80804.0,0.1238404]
[1744343559730,0.2296388,80805.0,80800.0,0.00018565]
[1744343559731,0.123845,80801.0,80800.0,0.00018565]
[1744343560636,0.196845,80801.0,80800.0,0.00018565]
[1744343565934,0.282205,80801.0,80800.0,0.00018565]
[1744343568642,0.245505,80801.0,80800.0,0.00018565]
[1744343568938,0.160145,80801.0,80800.0,0.06968565]
[1744343569139,0.123845,80801.0,80800.0,0.61625155]
[1744343569333,0.14848845,80805.0,80804.0,0.1238404]
[1744343569943,0.27232285,80808.0,80807.0,0.1238358]
[1744343570144,0.27232285,80808.0,80807.0,0.4846358]
[1744343571144,0.27232285,80808.0,80807.0,0.5543358]
[1744343573444,0.1238344,80808.0,80807.0,0.5543358]
[1744343574740,0.1238344,80808.0,80807.0,0.4305]
[1744343574937,0.1238344,80808.0,80807.0,0.5543358]
[1744343576841,0.1584344,80808.0,80807.0,0.5543358]
[1744343577045,0.1238344,80808.0,80807.0,0.5543358]
[1744343578542,0.29567595,80821.0,80820.0,0.1238158]
[1744343580446,0.29567595,80821.0,80820.0,0.13309497]
[1744343580640,0.33047595,80821.0,80820.0,0.13309497]
[1744343581044,0.1819875,80821.0,80820.0,0.13309497]
[1744343587254,0.1471875,80821.0,80820.0,0.13309497]
[1744343587455,0.1801875,80821.0,80820.0,0.13309497]
[1744343587956,0.0619075,80821.0,80820.0,0.13309497]
[1744343588343,0.00018565,80829.0,80825.0,0.1238082]
[1744343588649,0.00018565,80829.0,80825.0,0.4846082]
[1744343589045,0.00018565,80829.0,80825.0,0.5546082]
[1744343589251,0.00018565,80829.0,80828.0,0.1238036]
[1744343596461,0.00018565,80829.0,80828.0,0.1909036]
[1744343597063,0.0325,80843.0,80828.0,0.1909036]
[1744343597064,0.0004,80850.0,80849.0,0.1237714]
[1744343597251,0.0004,80850.0,80849.0,0.4845714]
[1744343598273,0.0004,80850.0,80849.0,0.5883714]
[1744343599561,0.1241699,80850.0,80849.0,0.4845714]
[1744343600260,0.1896699,80850.0,80849.0,0.3608]
[1744343600863,0.1896699,80850.0,80849.0,0.4845714]
[1744343603762,0.1896699,80850.0,80849.0,0.3608]
[1744343604264,0.1896699,80850.0,80849.0,0.4845714]
[1744343604467,0.1896699,80850.0,80849.0,0.3608]
[1744343606673,0.2748699,80850.0,80849.0,0.3608]
[1744343607571,0.1237714,80849.0,80848.0,0.1237724]
[1744343607965,0.1888714,80849.0,80848.0,0.1237724]
[1744343608875,0.1568714,80849.0,80848.0,0.1237724]
[1744343609779,0.1568714,80849.0,80848.0,0.1574724]
[1744343610876,0.1901714,80849.0,80848.0,0.1574724]
[1744343613590,0.1568714,80849.0,80848.0,0.1574724]
[1744343616776,0.0618874,80847.0,80826.0,0.58186847]
[1744343617077,0.0618874,80847.0,80839.0,0.1237863]
[1744343617078,0.1237821,80842.0,80839.0,0.1237863]
[1744343617273,0.1238051,80827.0,80816.0,0.3608]
[1744343617469,0.1238051,80827.0,80822.0,0.0683]
[1744343617777,0.1238051,80827.0,80826.0,0.41817343]
[1744343618167,0.1903051,80827.0,80826.0,0.29436683]
[1744343619580,0.5511051,80827.0,80826.0,0.29436683]
[1744343621179,0.1238174,80819.0,80818.0,0.00018553]
[1744343621580,0.2090174,80819.0,80818.0,0.00018553]
[1744343621881,0.1238266,80813.0,80812.0,0.22060989]
[1744343622881,0.1893266,80813.0,80812.0,0.22060989]
[1744343624483,0.1238266,80813.0,80812.0,0.70523799]
[1744343624683,0.1238266,80813.0,80812.0,0.58140989]
[1744343624884,0.1238266,80813.0,80812.0,0.70523799]
[1744343625281,0.1558266,80813.0,80812.0,0.70523799]
[1744343625685,0.1558266,80813.0,80812.0,0.4846281]
[1744343626788,0.1558266,80813.0,80812.0,0.3608]
[1744343627286,0.1558266,80813.0,80809.0,0.0342]
[1744343627287,0.1238312,80810.0,80809.0,0.0342]
[1744343627579,0.1238327,80809.0,80808.0,0.0319]
[1744343627786,0.1238327,80809.0,80808.0,0.1557342]
[1744343628282,0.1238327,80809.0,80808.0,0.0319]
[1744343629390,0.2415927,80809.0,80808.0,0.0319]
[1744343634884,0.2089927,80809.0,80808.0,0.0319]
[1744343636788,0.2089927,80809.0,80808.0,0.1557342]
[1744343638583,0.2089927,80809.0,80808.0,0.0319]
[1744343640187,0.1238327,80809.0,80808.0,0.0319]
[1744343641187,0.1238327,80809.0,80808.0,0.1557342]
[1744343652595,0.08516,80814.0,80813.0,0.1238266]
[1744343652796,0.14830225,80817.0,80813.0,0.1238266]
[1744343652797,0.21021245,80817.0,80814.0,0.0619125]
[1744343652994,0.21021245,80817.0,80816.0,0.123822]
[1744343653196,0.21021245,80817.0,80816.0,0.14042397]
[1744343653197,0.0619102,80817.0,80816.0,0.14042397]
[1744343653502,0.00018553,80818.0,80817.0,0.1238204]
[1744343653704,0.00018553,80818.0,80817.0,0.20642237]
[1744343654200,0.12400443,80818.0,80817.0,0.066]
[1744343654802,0.15560443,80818.0,80817.0,0.1898204]
[1744343655507,0.12400443,80818.0,80817.0,0.1898204]
[1744343655805,0.12400443,80818.0,80817.0,0.20629971]
[1744343656206,0.12400443,80818.0,80817.0,0.20629582]
[1744343656597,0.00018553,80818.0,80817.0,0.20629582]
[1744343656998,0.00018553,80818.0,80817.0,0.20621728]
[1744343657707,0.00018553,80818.0,80817.0,0.1898204]
[1744343660014,0.14840763,80823.0,80822.0,0.1238128]
[1744343660305,0.14840763,80823.0,80822.0,0.4846128]
[1744343660712,0.14840763,80823.0,80822.0,0.50099086]
[1744343660914,0.14840763,80823.0,80822.0,0.56559086]
[1744343661509,0.1238058,80827.0,80826.0,0.1238066]
[1744343662014,0.00018553,80831.0,80827.0,0.0619025]
[1744343662209,0.12398553,80831.0,80830.0,0.1238005]
[1744343662414,0.00018553,80831.0,80830.0,0.1238005]
[1744343662601,0.00018553,80831.0,80830.0,0.1887005]
[1744343662806,0.00018553,80831.0,80830.0,0.20548401]
[1744343663002,0.00018553,80831.0,80830.0,0.1887005]
[1744343663316,0.00018553,80831.0,80830.0,0.20548283]
[1744343665103,0.12398453,80831.0,80830.0,0.1887005]
[1744343668815,0.12398453,80831.0,80830.0,0.5495005]
[1744343673633,0.12398453,80831.0,80830.0,0.3608]
[1744343673831,0.15748453,80831.0,80830.0,0.3608]
[1744343674031,0.0619018,80828.0,80819.0,0.0619087]
[1744343674237,0.1238128,80822.0,80820.0,0.0323]
[1744343674530,0.0619033,80826.0,80825.0,0.1238082]
[1744343674735,0.0619002,80830.0,80829.0,0.1238005]
[1744343674939,0.0945002,80830.0,80829.0,0.1238005]
[1744343675234,0.0945002,80830.0,80829.0,0.1561005]
[1744343675738,0.00018553,80831.0,80830.0,0.1238005]
[1744343675926,0.07427134,80849.0,80848.0,0.123773]
[1744343676236,0.0622853,80850.0,80849.0,0.1237714]
[1744343676437,0.0622853,80850.0,80849.0,0.1894714]
[1744343676936,0.0622853,80850.0,80849.0,0.20559518]
[1744343679233,0.0622853,80850.0,80849.0,0.1894714]
[1744343680029,0.1237806,80844.0,80843.0,0.1237791]
[1744343680230,0.1237806,80844.0,80843.0,0.1565791]
[1744343680536,0.1888806,80844.0,80843.0,0.1565791]
[1744343682540,0.1569806,80844.0,80843.0,0.1565791]
[1744343683234,0.1569806,80844.0,80843.0,0.1895791]
[1744343688251,0.1569806,80844.0,80843.0,0.20704277]
[1744343690139,0.1891806,80844.0,80843.0,0.20704277]
[1744343690847,0.1891806,80844.0,80843.0,0.20682438]
[1744343691347,0.1891806,80844.0,80843.0,0.20682527]
[1744343692652,0.1891806,80844.0,80843.0,0.08304617]
[1744343692840,0.1891806,80844.0,80843.0,0.0328]
[1744343693150,0.1237806,80843.0,80842.0,0.3608]
[1744343693346,0.1237806,80843.0,80842.0,0.41148474]
[1744343693547,0.1563806,80843.0,80842.0,0.41148474]
[1744343693944,0.1563806,80843.0,80842.0,0.3608]
[1744343694643,0.1563806,80843.0,80842.0,0.4225]
[1744343695945,0.1563806,80843.0,80842.0,0.5462821]
[1744343696248,0.1563806,80843.0,80842.0,0.4225]
[1744343700656,0.1563806,80843.0,80842.0,0.3918]
[1744343700856,0.1873806,80843.0,80842.0,0.3918]
[1744343701257,0.0618959,80836.0,80832.0,0.3608]
[1744343701449,0.1237959,80833.0,80832.0,0.3608]
[1744343702051,0.2087959,80833.0,80832.0,0.3608]
[1744343702250,0.2087959,80833.0,80832.0,0.3914]
[1744343702451,0.2087959,80833.0,80832.0,0.4231]
[1744343703053,0.2087959,80833.0,80832.0,0.3608]
[1744343704053,0.085,80833.0,80832.0,0.5976085]
[1744343704360,0.1237959,80833.0,80832.0,0.5976085]
[1744343704657,0.0618949,80837.0,80836.0,0.1237913]
[1744343704860,0.00018553,80841.0,80837.0,0.0618943]
[1744343705064,0.00018553,80841.0,80840.0,0.4845852]
[1744343705361,0.12396993,80841.0,80840.0,0.5010962]
[1744343706156,0.00018553,80841.0,80840.0,0.5010962]
[1744343706460,0.00018553,80841.0,80840.0,0.50218794]
[1744343706849,0.12396923,80841.0,80840.0,0.50218794]
[1744343708965,0.14828398,80849.0,80840.0,0.62840274]
[1744343709154,0.14828398,80849.0,80848.0,0.484573]
[1744343709352,0.24663837,80858.0,80857.0,0.1237592]
[1744343709561,0.24663837,80858.0,80857.0,0.50216194]
[1744343709866,0.24663837,80858.0,80857.0,0.51540823]
[1744343710263,0.24663837,80858.0,80857.0,0.53236534]
[1744343710457,0.24663837,80858.0,80857.0,0.51912022]
[1744343710663,0.24663837,80858.0,80857.0,0.53236519]
[1744343711166,0.0618791,80858.0,80857.0,0.51912022]
[1744343713073,0.0618791,80858.0,80857.0,0.39536102]
[1744343713555,0.0618791,80858.0,80857.0,0.37775828]
[1744343713760,0.0618791,80858.0,80857.0,0.01695828]
[1744343713956,0.1256791,80858.0,80857.0,0.01695828]
[1744343716365,0.1256791,80858.0,80857.0,0.14071748]
[1744343716664,0.0934791,80858.0,80857.0,0.51962002]
[1744343716868,0.0896,80858.0,80857.0,0.51962002]
[1744343717270,0.2133577,80858.0,80857.0,0.50151748]
[1744343717467,0.2133577,80858.0,80857.0,0.75643006]
[1744343717668,0.2133577,80858.0,80857.0,0.86231748]
[1744343718268,0.2133577,80858.0,80857.0,0.73855828]
[1744343718469,0.2133577,80858.0,80857.0,0.7216]
[1744343719272,0.2133577,80858.0,80857.0,0.7861]
[1744343719678,0.00018553,80866.0,80863.0,0.0618744]
[1744343719873,0.25839987,80894.0,80865.0,0.3608]
[1744343720061,0.39444446,80894.0,80893.0,0.1237041]
[1744343720262,0.1237072,80891.0,80890.0,0.3608]
[1744343720474,0.1237072,80891.0,80890.0,0.01611335]
[1744343720873,0.0944526,80893.0,80881.0,0.3608]
[1744343720874,0.1237209,80882.0,80881.0,0.3608]
[1744343721074,0.2132809,80882.0,80881.0,0.3608]
[1744343725176,0.1237209,80882.0,80881.0,0.3608]
[1744343725376,0.2132809,80882.0,80881.0,0.3608]
[1744343727780,0.1237209,80882.0,80881.0,0.3608]
[1744343728387,0.2132809,80882.0,80881.0,0.3608]
[1744343728577,0.123714,80887.0,80886.0,0.0618567]
[1744343728880,0.123714,80887.0,80885.0,0.061858]
[1744343728881,0.1237179,80884.0,80883.0,0.3608]
[1744343729677,0.1561179,80884.0,80883.0,0.3608]
[1744343730480,0.0618568,80887.0,80883.0,0.9716]
[1744343730781,0.1237179,80886.0,80885.0,0.1237148]
[1744343731170,0.1237179,80886.0,80885.0,0.1557148]
[1744343731575,0.1237179,80886.0,80885.0,0.1557163]
[1744343732888,0.1514121,80895.0,80894.0,0.1237026]
[1744343733088,0.1514121,80895.0,80894.0,0.4845026]
[1744343733485,0.2751199,80895.0,80894.0,0.4845026]
[1744343733676,0.1855599,80895.0,80894.0,0.3608]
[1744343735486,0.1855599,80895.0,80894.0,0.4845026]
[1744343735784,0.0622483,80898.0,80894.0,0.3608]
[1744343735991,0.1859478,80898.0,80897.0,0.123698]
[1744343736487,0.0004,80898.0,80897.0,0.123698]
[1744343736877,0.3608,80924.0,80911.0,0.0618382]
[1744343737092,0.0618286,80924.0,80921.0,0.1236613]
[1744343737281,0.1240598,80922.0,80921.0,0.1236613]
[1744343737474,0.1240598,80922.0,80921.0,0.0648]
[1744343739083,0.1240598,80922.0,80921.0,0.1884613]
[1744343739683,0.0004,80922.0,80921.0,0.1884613]
[1744343739877,0.0326,80939.0,80921.0,0.1884613]
[1744343739878,0.0618194,80936.0,80932.0,0.1854623]
[1744343740084,0.0618194,80936.0,80933.0,0.0332]
[1744343740085,0.1236414,80934.0,80933.0,0.0332]